[Event "Early-Titled-Tuesday-Blitz-October-24-2023"]
[Site "Chess.com"]
[Date "2023.10.24"]
[Round "2"]
[White "Rud_Makarian"]
[Black "ShahxaibKhan"]
[Result "1-0"]
[WhiteElo "2958"]
[BlackElo "2403"]
[TimeControl "180+1"]
[EndTime "8:17:14 PDT"]
[Termination "Rud_Makarian won on time"]

1. d4 {[%clk 0:03:00.9]} 1... Nf6 {[%clk 0:02:56.7]} 2. c4 {[%clk 0:03:01.8]}
2... e6 {[%clk 0:02:56.3]} 3. Nf3 {[%clk 0:03:01.6]} 3... b6 {[%clk 0:02:55.2]}
4. g3 {[%clk 0:02:58.8]} 4... Bb7 {[%clk 0:02:56.1]} 5. Bg2 {[%clk 0:02:58.2]}
5... Be7 {[%clk 0:02:56]} 6. O-O {[%clk 0:02:58.3]} 6... O-O {[%clk 0:02:56.7]}
7. Re1 {[%clk 0:02:59]} 7... d6 {[%clk 0:02:52.6]} 8. Nc3 {[%clk 0:02:56]} 8...
Ne4 {[%clk 0:02:51.8]} 9. Qc2 {[%clk 0:02:54.9]} 9... f5 {[%clk 0:02:45.3]} 10.
Nd2 {[%clk 0:02:32.4]} 10... d5 {[%clk 0:02:44.1]} 11. Nf3 {[%clk 0:02:32.9]}
11... Nd7 {[%clk 0:02:42.6]} 12. h4 {[%clk 0:02:28.5]} 12... h6 {[%clk 0:02:40]}
13. b3 {[%clk 0:02:04.4]} 13... Ndf6 {[%clk 0:02:39.6]} 14. Ne5 {[%clk
0:02:03.6]} 14... Bd6 {[%clk 0:02:35.5]} 15. cxd5 {[%clk 0:01:59.5]} 15... exd5
{[%clk 0:02:34.5]} 16. Nb5 {[%clk 0:01:59.6]} 16... a6 {[%clk 0:02:13.9]} 17.
Nxd6 {[%clk 0:01:59.1]} 17... cxd6 {[%clk 0:02:14.8]} 18. Nd3 {[%clk 0:01:56.6]}
18... Rc8 {[%clk 0:02:13.3]} 19. Qb2 {[%clk 0:01:57.2]} 19... Qe8 {[%clk
0:02:02.2]} 20. Qa3 {[%clk 0:01:42.9]} 20... Qg6 {[%clk 0:01:42.8]} 21. Bf4
{[%clk 0:01:41.5]} 21... Nh5 {[%clk 0:01:28.2]} 22. Rac1 {[%clk 0:01:36.7]}
22... Nxf4 {[%clk 0:01:26]} 23. Nxf4 {[%clk 0:01:37.6]} 23... Qf6 {[%clk
0:01:22.5]} 24. Qb4 {[%clk 0:01:28.1]} 24... b5 {[%clk 0:01:13.5]} 25. h5 {[%clk
0:01:26.4]} 25... Rfd8 {[%clk 0:01:06.6]} 26. e3 {[%clk 0:01:22]} 26... Qe7
{[%clk 0:00:58.7]} 27. Bh3 {[%clk 0:01:19.6]} 27... Qf7 {[%clk 0:00:52.3]} 28.
a4 {[%clk 0:01:18]} 28... Bc6 {[%clk 0:00:35.9]} 29. Qa5 {[%clk 0:01:14.9]}
29... bxa4 {[%clk 0:00:31.8]} 30. bxa4 {[%clk 0:01:15.8]} 30... Be8 {[%clk
0:00:21.7]} 31. Qxd5 {[%clk 0:01:11.3]} 31... Qxd5 {[%clk 0:00:20.2]} 32. Nxd5
{[%clk 0:01:12.2]} 32... Rxc1 {[%clk 0:00:14.9]} 33. Rxc1 {[%clk 0:01:13.1]}
33... Bxh5 {[%clk 0:00:10.1]} 34. Bxf5 {[%clk 0:01:12.6]} 34... Nd2 {[%clk
0:00:08.4]} 35. Rc7 {[%clk 0:01:08]} 35... Bf3 {[%clk 0:00:07.2]} 36. Ne7+
{[%clk 0:01:03.6]} 36... Kf8 {[%clk 0:00:06.5]} 37. Ng6+ {[%clk 0:00:36]} 37...
Kg8 {[%clk 0:00:06.2]} 38. Rc8 {[%clk 0:00:35.4]} 38... Rxc8 {[%clk 0:00:06.2]}
39. Bxc8 {[%clk 0:00:36.3]} 39... Kf7 {[%clk 0:00:06.8]} 40. Nh4 {[%clk
0:00:34.3]} 40... Bc6 {[%clk 0:00:06.9]} 41. Bxa6 {[%clk 0:00:33.1]} 41... Bxa4
{[%clk 0:00:06.7]} 42. Bd3 {[%clk 0:00:33.5]} 42... Bc6 {[%clk 0:00:05.9]} 43.
Nf5 {[%clk 0:00:26.3]} 43... d5 {[%clk 0:00:05.2]} 44. Nh4 {[%clk 0:00:25.5]}
44... Bd7 {[%clk 0:00:05.1]} 45. Kg2 {[%clk 0:00:25]} 45... g5 {[%clk
0:00:04.6]} 46. Nf3 {[%clk 0:00:25]} 1-0

[Event "Early-Titled-Tuesday-Blitz-October-24-2023"]
[Site "Chess.com"]
[Date "2023.10.24"]
[Round "2"]
[White "GMJustin"]
[Black "Mystery2007"]
[Result "0-1"]
[WhiteElo "2204"]
[BlackElo "2461"]
[TimeControl "180+1"]
[EndTime "8:17:14 PDT"]
[Termination "Mystery2007 won on time"]

1. d4 {[%clk 0:02:48.8]} 1... Nf6 {[%clk 0:02:57.6]} 2. c4 {[%clk 0:02:47.4]}
2... e6 {[%clk 0:02:53.2]} 3. Nf3 {[%clk 0:02:46.5]} 3... b6 {[%clk 0:02:53]} 4.
g3 {[%clk 0:02:45.1]} 4... Bb7 {[%clk 0:02:53.4]} 5. Bg2 {[%clk 0:02:42.3]} 5...
Bb4+ {[%clk 0:02:53.5]} 6. Bd2 {[%clk 0:02:39]} 6... Bxd2+ {[%clk 0:02:52.5]} 7.
Qxd2 {[%clk 0:02:35]} 7... O-O {[%clk 0:02:52.3]} 8. O-O {[%clk 0:02:31.2]} 8...
d6 {[%clk 0:02:52.6]} 9. Nc3 {[%clk 0:02:22.7]} 9... Nbd7 {[%clk 0:02:53.1]} 10.
Qc2 {[%clk 0:02:13.9]} 10... Qe7 {[%clk 0:02:51.2]} 11. e4 {[%clk 0:02:06.7]}
11... e5 {[%clk 0:02:50.9]} 12. d5 {[%clk 0:02:02.5]} 12... h6 {[%clk 0:02:41]}
13. b4 {[%clk 0:01:48.7]} 13... Nh7 {[%clk 0:02:35.3]} 14. Nd2 {[%clk
0:01:32.3]} 14... a5 {[%clk 0:02:30.9]} 15. a3 {[%clk 0:01:28.9]} 15... Rfc8
{[%clk 0:02:01.8]} 16. Nb3 {[%clk 0:01:23.1]} 16... Ba6 {[%clk 0:01:37]} 17. Nd1
{[%clk 0:00:49.9]} 17... axb4 {[%clk 0:01:17.2]} 18. axb4 {[%clk 0:00:48.2]}
18... Bb7 {[%clk 0:01:16.9]} 19. Ne3 {[%clk 0:00:44.3]} 19... g6 {[%clk
0:01:14.8]} 20. h4 {[%clk 0:00:39.4]} 20... h5 {[%clk 0:01:13]} 21. Bh3 {[%clk
0:00:37.1]} 21... Nhf6 {[%clk 0:01:11.7]} 22. c5 {[%clk 0:00:27.4]} 22... bxc5
{[%clk 0:01:11.4]} 23. bxc5 {[%clk 0:00:26.6]} 23... dxc5 {[%clk 0:01:11.9]} 24.
Na5 {[%clk 0:00:21.2]} 24... Ba6 {[%clk 0:01:02.8]} 25. Nc6 {[%clk 0:00:19]}
25... Qd6 {[%clk 0:01:03.3]} 26. Rfc1 {[%clk 0:00:15.8]} 26... Bb5 {[%clk
0:00:57]} 27. Nc4 {[%clk 0:00:10.1]} 27... Bxc4 {[%clk 0:00:38.7]} 28. Qxc4
{[%clk 0:00:09.6]} 28... Rxa1 {[%clk 0:00:39.2]} 29. Rxa1 {[%clk 0:00:09.3]}
29... Nb6 {[%clk 0:00:39.9]} 30. Qb5 {[%clk 0:00:05.8]} 30... Rf8 {[%clk
0:00:30.5]} 31. f3 {[%clk 0:00:05.4]} 31... c4 {[%clk 0:00:27.3]} 32. Bf1 {[%clk
0:00:04.7]} 32... Nfd7 {[%clk 0:00:16.9]} 33. Bxc4 {[%clk 0:00:02.9]} 33... f5
{[%clk 0:00:16.1]} 34. Bd3 {[%clk 0:00:02.2]} 34... Nc5 {[%clk 0:00:15.3]} 35.
Bc2 {[%clk 0:00:02.3]} 35... f4 {[%clk 0:00:14.6]} 36. gxf4 {[%clk 0:00:01.6]}
36... Rxf4 {[%clk 0:00:14]} 37. Ra7 {[%clk 0:00:01.7]} 37... Rxf3 {[%clk
0:00:12.3]} 0-1

[Event "Early-Titled-Tuesday-Blitz-October-24-2023"]
[Site "Chess.com"]
[Date "2023.10.24"]
[Round "2"]
[White "balachess2006"]
[Black "kleinebeer98"]
[Result "0-1"]
[WhiteElo "2570"]
[BlackElo "2838"]
[TimeControl "180+1"]
[EndTime "8:17:15 PDT"]
[Termination "kleinebeer98 won by resignation"]

1. c4 {[%clk 0:02:53.3]} 1... e5 {[%clk 0:02:59.5]} 2. g3 {[%clk 0:02:53.3]}
2... Nf6 {[%clk 0:02:58.8]} 3. Bg2 {[%clk 0:02:53.6]} 3... c6 {[%clk 0:02:59.1]}
4. Nf3 {[%clk 0:02:53.6]} 4... e4 {[%clk 0:02:59.3]} 5. Nd4 {[%clk 0:02:54.3]}
5... h5 {[%clk 0:02:56.7]} 6. Nc3 {[%clk 0:02:53.1]} 6... d5 {[%clk 0:02:55.8]}
7. cxd5 {[%clk 0:02:53.3]} 7... h4 {[%clk 0:02:56.2]} 8. Nxe4 {[%clk 0:02:45.4]}
8... Nxe4 {[%clk 0:02:51.9]} 9. Bxe4 {[%clk 0:02:44.5]} 9... Bc5 {[%clk
0:02:52.5]} 10. Nb3 {[%clk 0:02:35.5]} 10... Bb6 {[%clk 0:02:52.8]} 11. d4
{[%clk 0:02:31.9]} 11... cxd5 {[%clk 0:02:52.4]} 12. Bf3 {[%clk 0:02:30.7]}
12... Nc6 {[%clk 0:02:51.1]} 13. Bf4 {[%clk 0:02:28.5]} 13... Qf6 {[%clk
0:02:49.5]} 14. Bxd5 {[%clk 0:01:44.7]} 14... Nxd4 {[%clk 0:02:36.4]} 15. Nxd4
{[%clk 0:01:20.3]} 15... Bxd4 {[%clk 0:02:37.3]} 16. O-O {[%clk 0:01:19.7]}
16... hxg3 {[%clk 0:02:33.2]} 17. Bxg3 {[%clk 0:01:17]} 17... O-O {[%clk
0:02:22.9]} 18. Qb3 {[%clk 0:01:12.4]} 18... Bh3 {[%clk 0:02:18.2]} 19. Rfd1
{[%clk 0:01:07.3]} 19... Bxb2 {[%clk 0:02:13.9]} 20. Rab1 {[%clk 0:01:06.5]}
20... Bd4 {[%clk 0:02:12]} 21. Qxb7 {[%clk 0:00:59.4]} 21... Rad8 {[%clk
0:02:09.3]} 22. Bf3 {[%clk 0:00:55.3]} 22... Bb6 {[%clk 0:02:03]} 23. Qc6 {[%clk
0:00:41.1]} 23... Qf5 {[%clk 0:01:57.1]} 24. Qe4 {[%clk 0:00:38.7]} 24... Qa5
{[%clk 0:01:54]} 25. Qh4 {[%clk 0:00:31.4]} 25... Be6 {[%clk 0:01:54.5]} 26. Be4
{[%clk 0:00:28.4]} 26... f5 {[%clk 0:01:50.3]} 27. Bf3 {[%clk 0:00:19.9]} 27...
Qxa2 {[%clk 0:01:50.7]} 28. Be5 {[%clk 0:00:15.1]} 28... Qa3 {[%clk 0:01:36.5]}
29. Qg5 {[%clk 0:00:10.2]} 29... Rxd1+ {[%clk 0:01:29.4]} 30. Rxd1 {[%clk
0:00:11.1]} 30... Rf7 {[%clk 0:01:28.7]} 31. Rd6 {[%clk 0:00:11.1]} 31... Qb3
{[%clk 0:01:16.8]} 32. h4 {[%clk 0:00:07.5]} 32... Bc7 {[%clk 0:01:10.5]} 33.
Rxe6 {[%clk 0:00:07.5]} 33... Qxe6 {[%clk 0:01:08.5]} 34. Bxc7 {[%clk
0:00:06.9]} 34... Qd7 {[%clk 0:00:43.5]} 35. Bf4 {[%clk 0:00:06.7]} 35... a5
{[%clk 0:00:44.2]} 36. h5 {[%clk 0:00:06.6]} 36... a4 {[%clk 0:00:45]} 37. Be5
{[%clk 0:00:07]} 37... Qe6 {[%clk 0:00:34.5]} 38. Bd4 {[%clk 0:00:04]} 38... a3
{[%clk 0:00:32.5]} 39. h6 {[%clk 0:00:04.3]} 39... Qxh6 {[%clk 0:00:32.3]} 40.
Qxh6 {[%clk 0:00:04.7]} 40... gxh6 {[%clk 0:00:33.2]} 41. Bd5 {[%clk 0:00:05.1]}
41... Kf8 {[%clk 0:00:33.3]} 42. Bxf7 {[%clk 0:00:05.5]} 42... Kxf7 {[%clk
0:00:34.2]} 43. Kg2 {[%clk 0:00:06.2]} 43... Ke6 {[%clk 0:00:33.2]} 44. Kf3
{[%clk 0:00:06.9]} 44... h5 {[%clk 0:00:33.3]} 45. Kg3 {[%clk 0:00:06.7]} 45...
Kd5 {[%clk 0:00:31.8]} 46. Ba1 {[%clk 0:00:07]} 46... Ke4 {[%clk 0:00:25.5]} 47.
Kg2 {[%clk 0:00:04.6]} 47... f4 {[%clk 0:00:25.5]} 48. Kf1 {[%clk 0:00:04.3]}
48... f3 {[%clk 0:00:25.2]} 49. Ke1 {[%clk 0:00:03.2]} 49... h4 {[%clk
0:00:24.4]} 50. e3 {[%clk 0:00:03.8]} 50... h3 {[%clk 0:00:24.6]} 51. Kd2 {[%clk
0:00:03]} 51... h2 {[%clk 0:00:25.3]} 0-1

[Event "Early-Titled-Tuesday-Blitz-October-24-2023"]
[Site "Chess.com"]
[Date "2023.10.24"]
[Round "2"]
[White "K_A_S_T_O_R"]
[Black "Aslanov_Umid"]
[Result "1-0"]
[WhiteElo "2874"]
[BlackElo "2574"]
[TimeControl "180+1"]
[EndTime "8:17:16 PDT"]
[Termination "K_A_S_T_O_R won by checkmate"]

1. e4 {[%clk 0:03:00.9]} 1... c5 {[%clk 0:03:00.3]} 2. Nf3 {[%clk 0:02:59.5]}
2... d6 {[%clk 0:03:00.9]} 3. d4 {[%clk 0:02:59.5]} 3... cxd4 {[%clk 0:03:01.8]}
4. Nxd4 {[%clk 0:03:00]} 4... Nf6 {[%clk 0:03:02.6]} 5. Nc3 {[%clk 0:03:00.5]}
5... a6 {[%clk 0:03:03.3]} 6. Bg5 {[%clk 0:03:00.1]} 6... e6 {[%clk 0:03:03.4]}
7. f4 {[%clk 0:02:59.9]} 7... Qb6 {[%clk 0:03:04.2]} 8. Bxf6 {[%clk 0:02:59.7]}
8... gxf6 {[%clk 0:03:04.2]} 9. Qd2 {[%clk 0:03:00.3]} 9... Qxb2 {[%clk
0:03:01.9]} 10. Nb3 {[%clk 0:02:59.7]} 10... Qa3 {[%clk 0:02:59]} 11. Be2 {[%clk
0:02:59.3]} 11... Qb4 {[%clk 0:02:25.8]} 12. O-O {[%clk 0:02:54.7]} 12... Be7
{[%clk 0:02:16.8]} 13. Bh5 {[%clk 0:02:52.2]} 13... Nc6 {[%clk 0:02:12.1]} 14.
Kh1 {[%clk 0:02:49.1]} 14... Bd7 {[%clk 0:02:09.7]} 15. Qe3 {[%clk 0:02:47.5]}
15... Bd8 {[%clk 0:01:51.1]} 16. a3 {[%clk 0:02:46.4]} 16... Qb6 {[%clk
0:01:50.7]} 17. Qg3 {[%clk 0:02:45.6]} 17... Be7 {[%clk 0:01:45.6]} 18. Rab1
{[%clk 0:02:38]} 18... O-O-O {[%clk 0:01:41.1]} 19. Bxf7 {[%clk 0:02:34.8]}
19... Rdf8 {[%clk 0:01:39.9]} 20. Bh5 {[%clk 0:02:34.1]} 20... Rhg8 {[%clk
0:01:39.9]} 21. Qd3 {[%clk 0:02:32.6]} 21... Qc7 {[%clk 0:01:33]} 22. Nd2 {[%clk
0:02:19.8]} 22... Na5 {[%clk 0:01:22.3]} 23. f5 {[%clk 0:02:12.4]} 23... Rg5
{[%clk 0:01:20.3]} 24. fxe6 {[%clk 0:02:11.3]} 24... Bxe6 {[%clk 0:01:21.2]} 25.
Bf3 {[%clk 0:02:11]} 25... Rc5 {[%clk 0:00:56.9]} 26. Ne2 {[%clk 0:02:00.1]}
26... Nc4 {[%clk 0:00:48.1]} 27. Nd4 {[%clk 0:01:56.8]} 27... Bg8 {[%clk
0:00:38.4]} 28. Nf5 {[%clk 0:01:50.7]} 28... Ne5 {[%clk 0:00:34.9]} 29. Qe3
{[%clk 0:01:46.7]} 29... Kb8 {[%clk 0:00:29.4]} 30. Be2 {[%clk 0:01:38.2]} 30...
Ka8 {[%clk 0:00:26.8]} 31. Nf3 {[%clk 0:01:22.5]} 31... Rxc2 {[%clk 0:00:21.1]}
32. N3d4 {[%clk 0:01:18.7]} 32... Rc3 {[%clk 0:00:18.1]} 33. Qd2 {[%clk
0:01:17.8]} 33... Rc8 {[%clk 0:00:11.8]} 34. Qb2 {[%clk 0:01:11.5]} 34... Rc5
{[%clk 0:00:08.2]} 35. Rfd1 {[%clk 0:01:05.6]} 35... Bc4 {[%clk 0:00:08.8]} 36.
Bxc4 {[%clk 0:01:04.5]} 36... Nxc4 {[%clk 0:00:09.5]} 37. Qb3 {[%clk 0:01:03.3]}
37... Qd7 {[%clk 0:00:09.1]} 38. a4 {[%clk 0:01:00.5]} 38... Re5 {[%clk
0:00:08.5]} 39. Qd3 {[%clk 0:00:58.4]} 39... Rec5 {[%clk 0:00:07.2]} 40. Nb3
{[%clk 0:00:56.3]} 40... Re5 {[%clk 0:00:06]} 41. Nd2 {[%clk 0:00:54.7]} 41...
Nxd2 {[%clk 0:00:03.9]} 42. Rxd2 {[%clk 0:00:55.2]} 42... Bf8 {[%clk 0:00:03.9]}
43. Ne3 {[%clk 0:00:53.1]} 43... Qe6 {[%clk 0:00:03.5]} 44. Nd5 {[%clk 0:00:53]}
44... Rxe4 {[%clk 0:00:03.8]} 45. Rdd1 {[%clk 0:00:46.7]} 45... Bh6 {[%clk
0:00:03.4]} 46. Nb6+ {[%clk 0:00:46.5]} 46... Kb8 {[%clk 0:00:04]} 47. Nxc8
{[%clk 0:00:46]} 47... Kxc8 {[%clk 0:00:04.9]} 48. Qg3 {[%clk 0:00:41.3]} 48...
Bf4 {[%clk 0:00:03.8]} 49. Qg7 {[%clk 0:00:40.1]} 49... Qf5 {[%clk 0:00:01.8]}
50. Qxb7+ {[%clk 0:00:38.6]} 50... Kd8 {[%clk 0:00:02]} 51. Qb8+ {[%clk
0:00:36.4]} 51... Ke7 {[%clk 0:00:02.7]} 52. Rb7+ {[%clk 0:00:36.5]} 52... Ke6
{[%clk 0:00:03.3]} 53. Qe8# {[%clk 0:00:35.2]} 1-0

[Event "Early-Titled-Tuesday-Blitz-October-24-2023"]
[Site "Chess.com"]
[Date "2023.10.24"]
[Round "2"]
[White "blitzking1729"]
[Black "Boorchess"]
[Result "1-0"]
[WhiteElo "2808"]
[BlackElo "2541"]
[TimeControl "180+1"]
[EndTime "8:17:20 PDT"]
[Termination "blitzking1729 won on time"]

1. d4 {[%clk 0:03:00.9]} 1... Nf6 {[%clk 0:02:59.3]} 2. Bf4 {[%clk 0:03:00.6]}
2... g6 {[%clk 0:02:55.1]} 3. Nc3 {[%clk 0:02:57.6]} 3... d6 {[%clk 0:02:52.5]}
4. e4 {[%clk 0:02:56.3]} 4... Bg7 {[%clk 0:02:51.8]} 5. Qd2 {[%clk 0:02:54.7]}
5... h6 {[%clk 0:02:51.1]} 6. h4 {[%clk 0:02:52]} 6... c6 {[%clk 0:02:50.5]} 7.
f3 {[%clk 0:02:51.5]} 7... b5 {[%clk 0:02:48.4]} 8. a3 {[%clk 0:02:51.3]} 8...
Nbd7 {[%clk 0:02:45.9]} 9. O-O-O {[%clk 0:02:46.1]} 9... Nb6 {[%clk 0:02:33.5]}
10. d5 {[%clk 0:02:40.5]} 10... cxd5 {[%clk 0:02:31.8]} 11. Bxb5+ {[%clk
0:02:37.8]} 11... Bd7 {[%clk 0:02:31.8]} 12. Bxd7+ {[%clk 0:02:37.3]} 12... Qxd7
{[%clk 0:02:31.4]} 13. exd5 {[%clk 0:02:36.9]} 13... Rb8 {[%clk 0:02:25.8]} 14.
b3 {[%clk 0:02:21.4]} 14... Rc8 {[%clk 0:02:10.5]} 15. Nge2 {[%clk 0:02:19.6]}
15... Rc5 {[%clk 0:01:40.9]} 16. Be3 {[%clk 0:02:12]} 16... Ra5 {[%clk 0:01:01]}
17. Bxb6 {[%clk 0:02:10.1]} 17... axb6 {[%clk 0:01:00.3]} 18. a4 {[%clk
0:02:10.4]} 18... O-O {[%clk 0:00:58.6]} 19. Qd3 {[%clk 0:01:49.6]} 19... Rc8
{[%clk 0:00:55.9]} 20. Nb5 {[%clk 0:01:46.5]} 20... Qb7 {[%clk 0:00:38.3]} 21.
c4 {[%clk 0:01:42.6]} 21... Nd7 {[%clk 0:00:37.6]} 22. Kc2 {[%clk 0:01:20.8]}
22... Nc5 {[%clk 0:00:35.4]} 23. Qe3 {[%clk 0:01:20.4]} 23... Nxa4 {[%clk
0:00:35.3]} 24. bxa4 {[%clk 0:00:52.8]} 24... Rxc4+ {[%clk 0:00:34.2]} 25. Kd2
{[%clk 0:00:52.6]} 25... Qxd5+ {[%clk 0:00:15.8]} 26. Ke1 {[%clk 0:00:48.9]}
26... Qb7 {[%clk 0:00:12.7]} 27. Kf2 {[%clk 0:00:38.5]} 27... Rcxa4 {[%clk
0:00:11.5]} 28. Nbc3 {[%clk 0:00:36.8]} 28... Rc4 {[%clk 0:00:09.5]} 29. Ne4
{[%clk 0:00:28]} 29... d5 {[%clk 0:00:07.7]} 30. Nd2 {[%clk 0:00:24.1]} 30...
Rb4 {[%clk 0:00:06.3]} 31. Rb1 {[%clk 0:00:22.7]} 31... Rxb1 {[%clk 0:00:04.8]}
32. Rxb1 {[%clk 0:00:23.6]} 32... b5 {[%clk 0:00:03.5]} 33. Nb3 {[%clk
0:00:23.3]} 33... Ra3 {[%clk 0:00:03.2]} 34. Qc5 {[%clk 0:00:20.5]} 34... Ra2
{[%clk 0:00:03.4]} 35. Nc1 {[%clk 0:00:20.4]} 35... Ra5 {[%clk 0:00:02.8]} 36.
Nd3 {[%clk 0:00:17.1]} 36... e6 {[%clk 0:00:02.9]} 37. Qb4 {[%clk 0:00:16.8]}
37... Ra6 {[%clk 0:00:02.2]} 38. Qxb5 {[%clk 0:00:17]} 38... Qxb5 {[%clk
0:00:02.3]} 39. Rxb5 {[%clk 0:00:16.8]} 39... Bf6 {[%clk 0:00:03.2]} 40. h5
{[%clk 0:00:15.6]} 40... gxh5 {[%clk 0:00:02.9]} 41. Ndf4 {[%clk 0:00:13.6]}
41... h4 {[%clk 0:00:02.7]} 42. Rb8+ {[%clk 0:00:13.5]} 42... Kh7 {[%clk
0:00:02.2]} 43. Rb7 {[%clk 0:00:13]} 1-0

[Event "Early-Titled-Tuesday-Blitz-October-24-2023"]
[Site "Chess.com"]
[Date "2023.10.24"]
[Round "2"]
[White "Martial2008"]
[Black "rajesh1464"]
[Result "1-0"]
[WhiteElo "2660"]
[BlackElo "2323"]
[TimeControl "180+1"]
[EndTime "8:17:20 PDT"]
[Termination "Martial2008 won by resignation"]

1. d4 {[%clk 0:03:00.9]} 1... Nf6 {[%clk 0:02:58.5]} 2. Nf3 {[%clk 0:03:00]}
2... g6 {[%clk 0:02:58.6]} 3. Bg5 {[%clk 0:02:59.8]} 3... Bg7 {[%clk 0:02:58.8]}
4. Nbd2 {[%clk 0:02:58.8]} 4... h6 {[%clk 0:02:57.4]} 5. Bh4 {[%clk 0:02:58.2]}
5... g5 {[%clk 0:02:57.5]} 6. Bg3 {[%clk 0:02:57.7]} 6... d5 {[%clk 0:02:57.4]}
7. e3 {[%clk 0:02:53.2]} 7... c6 {[%clk 0:02:57.2]} 8. Bd3 {[%clk 0:02:53.4]}
8... Bg4 {[%clk 0:02:54.7]} 9. h3 {[%clk 0:02:53]} 9... Bh5 {[%clk 0:02:54.9]}
10. c3 {[%clk 0:02:53.2]} 10... Nbd7 {[%clk 0:02:54.8]} 11. Qc2 {[%clk
0:02:52.9]} 11... Bxf3 {[%clk 0:02:46.2]} 12. Nxf3 {[%clk 0:02:52.6]} 12... Qa5
{[%clk 0:02:40.1]} 13. h4 {[%clk 0:02:51.8]} 13... g4 {[%clk 0:02:38.9]} 14. Ne5
{[%clk 0:02:51.7]} 14... Nxe5 {[%clk 0:02:35.2]} 15. Bxe5 {[%clk 0:02:52.6]}
15... h5 {[%clk 0:02:34.6]} 16. a4 {[%clk 0:02:46.6]} 16... Kf8 {[%clk
0:02:31.9]} 17. b4 {[%clk 0:02:45.7]} 17... Qd8 {[%clk 0:02:31.5]} 18. a5 {[%clk
0:02:45.4]} 18... a6 {[%clk 0:02:30.9]} 19. f3 {[%clk 0:02:40.2]} 19... Ne8
{[%clk 0:02:29.4]} 20. Bxg7+ {[%clk 0:02:31.3]} 20... Kxg7 {[%clk 0:02:27.7]}
21. Qe2 {[%clk 0:02:16.4]} 21... Nf6 {[%clk 0:02:02.1]} 22. Kd2 {[%clk
0:02:16.1]} 22... e6 {[%clk 0:02:01.5]} 23. Raf1 {[%clk 0:02:13.2]} 23... b6
{[%clk 0:01:58.9]} 24. axb6 {[%clk 0:02:09.1]} 24... Qxb6 {[%clk 0:01:58.4]} 25.
fxg4 {[%clk 0:02:09.7]} 25... hxg4 {[%clk 0:01:58]} 26. Qf2 {[%clk 0:02:06.1]}
26... Rh6 {[%clk 0:01:57.7]} 27. Qf4 {[%clk 0:02:00.3]} 27... Qd8 {[%clk
0:01:48.7]} 28. Qg5+ {[%clk 0:01:58.4]} 28... Rg6 {[%clk 0:01:46.7]} 29. Bxg6
{[%clk 0:01:57.5]} 29... fxg6 {[%clk 0:01:47.6]} 30. Kd3 {[%clk 0:01:44.5]}
30... Ne4 {[%clk 0:01:36.3]} 31. Qxd8 {[%clk 0:01:43.7]} 31... Rxd8 {[%clk
0:01:37.2]} 32. Rf4 {[%clk 0:01:41.6]} 32... g3 {[%clk 0:01:28.3]} 33. Ra1
{[%clk 0:01:38.9]} 33... Ra8 {[%clk 0:01:23.2]} 34. Rxe4 {[%clk 0:01:38.7]}
34... dxe4+ {[%clk 0:01:23]} 35. Kxe4 {[%clk 0:01:39.6]} 35... Kh6 {[%clk
0:01:21.7]} 36. Ra5 {[%clk 0:01:38.6]} 36... Rf8 {[%clk 0:01:20.5]} 37. Rg5
{[%clk 0:01:34.8]} 37... Rf5 {[%clk 0:01:17.1]} 38. Rxg3 {[%clk 0:01:33.4]}
38... a5 {[%clk 0:01:16.9]} 39. bxa5 {[%clk 0:01:31.9]} 39... Rxa5 {[%clk
0:01:17.1]} 40. Rf3 {[%clk 0:01:29.4]} 40... c5 {[%clk 0:01:16.7]} 41. Rf6
{[%clk 0:01:27.3]} 41... cxd4 {[%clk 0:01:17.1]} 42. cxd4 {[%clk 0:01:28]} 42...
Ra2 {[%clk 0:01:16.8]} 43. g4 {[%clk 0:01:26.8]} 43... Rg2 {[%clk 0:01:15.7]}
44. g5+ {[%clk 0:00:57]} 44... Kh5 {[%clk 0:01:14.9]} 45. Rxe6 {[%clk
0:00:57.4]} 45... Rg4+ {[%clk 0:01:10]} 46. Ke5 {[%clk 0:00:57.7]} 46... Rxh4
{[%clk 0:01:10.3]} 47. d5 {[%clk 0:00:58.3]} 47... Kxg5 {[%clk 0:01:10.2]} 48.
d6 {[%clk 0:00:58.4]} 48... Rh3 {[%clk 0:01:07.9]} 49. e4 {[%clk 0:00:54.7]}
49... Rd3 {[%clk 0:01:07.8]} 50. d7 {[%clk 0:00:54.9]} 50... Rxd7 {[%clk
0:01:07.2]} 51. Ra6 {[%clk 0:00:40.7]} 51... Re7+ {[%clk 0:01:04.6]} 52. Kd5
{[%clk 0:00:39]} 52... Kh5 {[%clk 0:00:55.6]} 53. e5 {[%clk 0:00:37.3]} 53... g5
{[%clk 0:00:56.1]} 54. e6 {[%clk 0:00:35.8]} 54... g4 {[%clk 0:00:56.5]} 55. Ra8
{[%clk 0:00:31.1]} 55... g3 {[%clk 0:00:53.4]} 56. Ke5 {[%clk 0:00:28.6]} 56...
g2 {[%clk 0:00:49.3]} 57. Rg8 {[%clk 0:00:27.9]} 57... Kh6 {[%clk 0:00:37]} 58.
Rxg2 {[%clk 0:00:27.3]} 1-0